Cogmind - Beta 13 @@@ ROGUE MODE // 2024.04.17 @ 22:31:15 Player: Patryk Z Result: Escaped! Performance ------------- Evolutions (9) 4500 Regions Visited (19) 3800 Robots Destroyed (50) 250 Value Destroyed (1390) 1390 Prototype IDs (9) 180 Alien Tech Used (2) 400 Bonus (9082) 9082 TOTAL SCORE: 19602 Bonus ------- High Alert Combat Kills 32 Follower Combat Kills 850 Network Hubs Disabled 200 Met MAIN.C 5000 Win 3000 Cogmind --------- Core Integrity 1226/1600 Matter 262/300 Energy 99/100 System Corruption 16% Temperature Cool (2) Movement Flying (37) Location To Epsilon Eridani Parts ------- > --- POWER (3) -------- Fusion Compressor > --- PROPULSION (10) -- Improved VTOL Module Impulse Thruster Array > --- UTILITY (10) ----- Medium Storage Unit Enhanced Optical Array Improved Sensor Array Advanced Signal Interpreter Graphene Brace Improved Hacking Suite Advanced Recalibrator > --- WEAPON (2) ------- (None) > --- INVENTORY (10) --- Experimental Q-thruster Structural Scanner Stasis Canceller Subatomic Replicator Hardcell Cannon Fusion Bomb Launcher Peak State ------------ > --- POWER ------------ Fusion Compressor Micro Antimatter Reactor Light Quantum Reactor > --- PROPULSION ------- Improved VTOL Module Improved VTOL Module Improved VTOL Module Improved VTOL Module Impulse Thruster Field Propulsion Array Q-thruster Impulse Thruster Array > --- UTILITY ---------- Experimental Power Amplifier Advanced Cryofiber Web Medium Storage Unit Enhanced Optical Array Improved Sensor Array Advanced Signal Interpreter Advanced Reaction Control System Graphene Brace Improved Hacking Suite Advanced Recalibrator > --- WEAPON ----------- Fusion Bomb Launcher Katana > --- INVENTORY -------- Impulse Thruster Experimental Q-thruster Structural Scanner Stasis Canceller Advanced Reaction Control System Subatomic Replicator Terrabomb Hardcell Cannon [Rating: 157] Favorites ----------- Power Reinforced Ion Engine Engine Reinforced Ion Engine Power Core Light Nuclear Core Reactor Micro Antimatter Reactor Propulsion Improved VTOL Module Treads Light Treads Leg Aluminum Leg Wheel Compact Wheel Flight Unit Improved VTOL Module Utility Light Armor Plating Device Improved Sensor Array Storage Huge Storage Unit Processor Advanced Signal Interpreter Hackware Improved Hacking Suite Protection Light Armor Plating Weapon Katana Energy Gun Heavy Particle Gun Ballistic Gun Gauss Rifle Ballistic Cannon Hardcell Cannon Launcher Rocket Launcher Slashing Weapon Katana Build | -11 -10 -10 -8 -8 -8 -6 -5 -4 -4 -4 -4 -4 -3 -3 -3 -2 -2 -1 -1 ------- Run | Yrd Mat Sub Mat Sto Rec Fac Fac Fac Ext Cet Arc Hub Res Qua Sec Res Tes Acc Com Slots Evolved 18 | . . . 4 . . 4 2 2 . . . . 2 . . 2 . 2 . Power 2 | . . . . . . 1 . . . . . . . . . 1 . . . Propulsion 8 | . . . 2 . . 3 1 1 . . . . . . . 1 . . . Utility 8 | . . . 2 . . . 1 1 . . . . 2 . . . . 2 . Weapon . | . . . . . . . . . . . . . . . . . . . . Parts Attached 144 | 6 3 6 15 17 3 19 5 4 14 . . 4 10 1 . 4 6 14 13 Power 17 | 1 . 1 2 2 . 2 . . 1 . . . 2 . . 2 . 1 3 Engine 6 | 1 . 1 2 2 . . . . . . . . . . . . . . . Core 4 | . . . . . . 2 . . . . . . . . . 1 . . 1 Reactor 7 | . . . . . . . . . 1 . . . 2 . . 1 . 1 2 Propulsion 48 | 2 2 1 6 7 3 7 1 3 1 . . . . . . 2 4 5 4 Treads 12 | . . . 5 4 3 . . . . . . . . . . . . . . Leg 5 | 2 . . 1 2 . . . . . . . . . . . . . . . Wheel 4 | . 2 1 . 1 . . . . . . . . . . . . . . . Hover . | . . . . . . . . . . . . . . . . . . . . Flight 27 | . . . . . . 7 1 3 1 . . . . . . 2 4 5 4 Utility 57 | 1 1 . 2 4 . 7 3 1 12 . . 3 7 1 . . 2 8 5 Device 40 | . . . . 1 . 5 2 1 11 . . 3 2 1 . . 2 7 5 Storage 4 | 1 1 . . . . 1 . . . . . . 1 . . . . . . Processor 5 | . . . 1 . . . . . 1 . . . 3 . . . . . . Hackware 2 | . . . . . . . 1 . . . . . . . . . . 1 . Protection 6 | . . . 1 3 . 1 . . . . . . 1 . . . . . . Artifact . | . . . . . . . . . . . . . . . . . . . . Weapon 22 | 2 . 4 5 4 . 3 1 . . . . 1 1 . . . . . 1 Energy Gun 3 | . . . 2 1 . . . . . . . . . . . . . . . Energy Cannon . | . . . . . . . . . . . . . . . . . . . . Ballistic Gun 12 | 2 . 4 3 2 . 1 . . . . . . . . . . . . . Ballistic Cannon 2 | . . . . . . . . . . . . 1 1 . . . . . . Launcher 4 | . . . . 1 . 1 1 . . . . . . . . . . . 1 Special Weapon . | . . . . . . . . . . . . . . . . . . . . Impact Weapon . | . . . . . . . . . . . . . . . . . . . . Slashing Weapon 1 | . . . . . . 1 . . . . . . . . . . . . . Piercing Weapon . | . . . . . . . . . . . . . . . . . . . . Special Melee Weapon . | . . . . . . . . . . . . . . . . . . . . Unidentified Prototypes 11 | . . . . 4 . 1 1 1 . . . . . 2 . . 1 . 1 Parts Lost 40 | . . 4 3 3 . . . . 1 1 . . 2 . 1 . 1 9 15 Power 6 | . . 1 . . . . . . . . . . . . 1 . . 1 3 Propulsion 16 | . . 2 . 1 . . . . 1 . . . . . . . . 4 8 Utility 12 | . . . 1 1 . . . . . . . . 2 . . . 1 4 3 Weapon 6 | . . 1 2 1 . . . . . 1 . . . . . . . . 1 Highest Loss Streak 11 | . . 4 1 1 . . . . 1 1 . . 1 . 1 . 1 6 11 To Critical Strikes 1 | . . . . 1 . . . . . . . . . . . . . . . Average Slot Usage (%) 90 | . 85 66 75 93 100 98 100 100 100 96 94 95 93 93 95 94 94 95 83 Engine 5 | . 14 7 8 9 9 . . . . . . . . . . . . . . Core 2 | . . . . . . 12 11 10 5 5 5 5 . . . 4 4 4 4 Reactor 1 | . . . . . . . . . 4 5 5 5 8 9 9 8 8 7 5 Treads 9 | . . . 26 23 27 . . . . . . . . . . . . . . Wheel 7 | . 27 15 2 9 9 . . . . . . . . . . . . . . Flight 17 | . . . . . . 44 47 47 47 47 47 47 42 42 42 42 43 39 32 Device 10 | . . . . 6 9 12 11 15 21 21 21 21 20 17 19 17 19 26 22 Storage 8 | . 14 14 9 9 9 6 5 5 5 5 5 5 4 4 4 4 4 4 4 Processor 2 | . . . . . . . . . 4 5 5 5 8 9 9 8 8 8 8 Protection 6 | . . . 8 14 18 6 5 5 . . . . 2 4 4 4 1 . . Energy Gun 2 | . . . 3 7 9 . . . . . . . . . . . . . . Ballistic Gun 10 | . 28 27 14 11 9 2 . . . . . . . . . . . . . Slashing Weapon 1 | . . . . . . 5 5 5 5 5 5 5 4 4 4 4 4 4 3 Naked Turns . | . . . . . . . . . . . . . . . . . . . . Heaviest Build 118 | 12 92 93 113 118 109 109 35 38 46 45 38 47 42 38 38 47 47 55 64 Greatest Support 80 | 20 26 26 80 16 16 35 40 42 47 47 47 47 47 47 47 53 55 59 66 Greatest Overweight (x) 27 | 1 3 27 5 7 6 6 . . . . . . . . . . . 1 . Average Overweight (x) 1 | . 2 3 2 6 6 . . . . . . . . . . . . . . Largest Inventory Capacity 25 | 8 25 25 25 25 25 25 10 10 10 10 10 10 10 10 10 10 10 10 10 Average Capacity 18 | 6 24 25 25 25 25 10 10 10 10 10 10 10 10 10 10 10 10 10 10 Most Carried 25 | 6 7 9 24 25 25 25 10 10 10 9 9 9 10 10 10 10 10 10 10 Average Carried 14 | 4 6 8 12 24 25 10 9 9 9 9 9 9 9 9 10 8 9 9 8 Final Capacity 25 | 8 25 25 25 25 25 10 10 10 10 10 10 10 10 10 10 10 10 10 10 Final Carried 25 | 6 7 9 24 25 25 10 10 10 9 9 9 9 9 10 10 10 10 9 6 Class Distribution -------------------- 35% | Scavenger-Mutant 20% | Scavenger-Sprinter 20% | Mutant 13% | Scout 6% | Scavenger-Scout 3% | Commander-Mutant Dominant Class ---------------- Mutant | -10/Materials Mutant | -10/Subcaves Mutant | -8/Materials Scavenger-Mutant | -8/Storage Scavenger-Mutant | -8/Recycling Scavenger-Sprinter | -6/Factory Scavenger-Sprinter | -5/Factory Scavenger-Sprinter | -4/Factory Scavenger-Sprinter | -4/Extension Scavenger-Sprinter | -4/Cetus Scavenger-Sprinter | -4/Archives Scavenger-Sprinter | -4/Hub_04(d) Scout | -3/Research Scout | -3/Quarantine Scout | -3/Section 7 Scout | -2/Research Scout | -2/Testing Scavenger-Scout | -1/Access Scout | -1/Command Resources | -11 -10 -10 -8 -8 -8 -6 -5 -4 -4 -4 -4 -4 -3 -3 -3 -2 -2 -1 -1 ----------- Run | Yrd Mat Sub Mat Sto Rec Fac Fac Fac Ext Cet Arc Hub Res Qua Sec Res Tes Acc Com Matter Collected 2082 | 220 . 105 247 374 152 259 . . 49 . . . 103 . . 25 328 27 193 Remotely . | . . . . . . . . . . . . . . . . . . . . Salvage Created 2260 | . . 80 388 458 217 37 . . 49 . . 519 103 . . 25 219 115 50 Parts 115 | . . 5 21 27 10 4 . . 5 . . 18 1 . . 3 13 4 4 Haulers Intercepted 3 | . . . . 3 . . . . . . . . . . . . . . . Recyclers Shooed 2 | . . . 1 . . . . . . . . . . . . . 1 . . Parts Field Recycled . | . . . . . . . . . . . . . . . . . . . . Retrieved Matter . | . . . . . . . . . . . . . . . . . . . . Parts Self-Destructed . | . . . . . . . . . . . . . . . . . . . . Prevented . | . . . . . . . . . . . . . . . . . . . . Kills | -11 -10 -10 -8 -8 -8 -6 -5 -4 -4 -4 -4 -4 -3 -3 -3 -2 -2 -1 -1 ------- Run | Yrd Mat Sub Mat Sto Rec Fac Fac Fac Ext Cet Arc Hub Res Qua Sec Res Tes Acc Com Combat Hostiles Destroyed 22 | . . 2 10 4 2 2 . . . . . 2 . . . . . . . Guns 18 | . . 2 10 4 2 . . . . . . . . . . . . . . AOE 3 | . . . . . . 2 . . . . . 1 . . . . . . . Classes Destroyed 14 | . . 1 5 2 2 1 . . 1 . . 1 . . . . 1 . . Worker 7 | . . . . . . . . . . . . 4 . . . 1 2 . . Builder 5 | . . . . . 1 . . . 1 . . 2 . . . . 1 . . Hauler 3 | . . . . 3 . . . . . . . . . . . . . . . Recycler 8 | . . . 1 2 1 . . . . . . 1 1 . . . 1 1 . Operator 1 | . . . . . . . . . . . . . . . . . 1 . . Watcher 4 | . . . . . . . . . 1 . . 2 . . . . . . 1 Swarmer 6 | . . . 4 2 . . . . . . . . . . . . . . . Grunt 4 | . . . 4 . . . . . . . . . . . . . . . . Brawler 2 | . . . 1 1 . . . . . . . . . . . . . . . Duelist 1 | . . . . 1 . . . . . . . . . . . . . . . Sentry 4 | . . . . . 2 . . . . . . 2 . . . . . . . Hunter 1 | . . . 1 . . . . . . . . . . . . . . . . Programmer 2 | . . . . . . 2 . . . . . . . . . . . . . Subdweller 2 | . . 2 . . . . . . . . . . . . . . . . . Best Kill Streak 11 | . . 1 5 3 1 1 . . 1 . . 11 1 . . 1 2 1 1 Combat Bots Only 4 | . . 1 4 3 1 1 . . . . . 2 . . . . . . . Max Kills in Single Turn 9 | . . 1 2 1 1 1 . . 1 . . 9 1 . . 1 1 1 1 Gunslinging 1 | . . . 1 . . . . . . . . . . . . . . . . Exploded 1 | . . . . . . 1 . . . . . 1 . . . . . . . Melee . | . . . . . . . . . . . . . . . . . . . . Uniques/NPCs Destroyed . | . . . . . . . . . . . . . . . . . . . . Combat | -11 -10 -10 -8 -8 -8 -6 -5 -4 -4 -4 -4 -4 -3 -3 -3 -2 -2 -1 -1 -------- Run | Yrd Mat Sub Mat Sto Rec Fac Fac Fac Ext Cet Arc Hub Res Qua Sec Res Tes Acc Com Hostile Shots Fired 435 | . . 31 64 31 8 4 . . 33 4 7 7 40 8 19 . 14 83 82 Missed 208 | . . 7 15 7 3 2 . . 21 3 5 7 21 4 13 . 10 51 39 Damage Taken 5012 | . . 501 589 513 73 28 . . 295 38 58 98 268 106 95 . 69 894 1387 Core 876 | . . 145 71 45 . . . . 59 . 28 . 27 40 42 . 45 141 233 Absorbed by Shields . | . . . . . . . . . . . . . . . . . . . . Core Remaining (%) 86 | 100 . 42 . . 78 100 100 . . . . 92 . . 91 . 96 . 76 Volleys Fired 88 | . . 13 26 25 13 5 . . . . . 5 . . . . . . 1 Largest 2 | . . 2 2 2 2 1 . . . . . 1 . . . . . . 1 Hottest 95 | . . 60 95 83 83 33 . . . . . 65 . . . . . . 52 Shots Fired 151 | . . 22 47 49 22 5 . . . . . 5 . . . . . . 1 Gun 140 | . . 22 47 49 22 . . . . . . . . . . . . . . Cannon 5 | . . . . . . . . . . . . 5 . . . . . . . Launcher 6 | . . . . . . 5 . . . . . . . . . . . . 1 Special . | . . . . . . . . . . . . . . . . . . . . Kinetic 108 | . . 22 35 38 8 . . . . . . 5 . . . . . . . Thermal 35 | . . . 10 11 14 . . . . . . . . . . . . . . Explosive 6 | . . . . . . 5 . . . . . . . . . . . . 1 Electromagnetic 2 | . . . 2 . . . . . . . . . . . . . . . . Robot Hit Streak 19 | . . 19 7 4 12 4 . . . . . . . . . . . . . Robot Miss Streak 3 | . . . 3 3 1 1 . . . . . . . . . . . . . Penetration Max . | . . . . . . . . . . . . . . . . . . . . Secondary Targets 2 | . . . 2 . . . . . . . . . . . . . . . . Max Gunslinging Chain 1 | . . . 1 . . . . . . . . . . . . . . . . Shots Hit Robots 118 | . . 19 35 26 12 3 . . 6 . . . 5 . . 2 6 3 1 Core Hits 64 | . . 6 18 11 4 4 . . 3 . . 11 . . . . 3 1 3 Critical Kills . | . . . . . . . . . . . . . . . . . . . . Critical Parts Destroyed 1 | . . . 1 . . . . . . . . . . . . . . . . Critical Strikes 1 | . . . 1 . . . . . . . . . . . . . . . . Destroy 1 | . . . 1 . . . . . . . . . . . . . . . . Melee Attacks 177 | . . . . . . 19 1 2 8 3 2 1 27 4 5 33 22 48 2 Impact . | . . . . . . . . . . . . . . . . . . . . Slashing 177 | . . . . . . 19 1 2 8 3 2 1 27 4 5 33 22 48 2 Piercing . | . . . . . . . . . . . . . . . . . . . . Sneak Attacks 13 | . . . . . . . . . 3 . . . 1 . . 2 5 1 1 Combat Hostiles . | . . . . . . . . . . . . . . . . . . . . Follow-up Attacks . | . . . . . . . . . . . . . . . . . . . . Damage Inflicted 4491 | . . 175 628 525 197 154 . . 322 . . 1392 248 . . 148 414 170 118 Guns 1513 | . . 175 628 513 197 . . . . . . . . . . . . . . Cannons . | . . . . . . . . . . . . . . . . . . . . Explosions 1588 | . . . . . . 154 . . . . . 1392 . . . . . . 42 Melee 1378 | . . . . . . . . . 322 . . . 248 . . 148 414 170 76 Ramming 12 | . . . . 12 . . . . . . . . . . . . . . . Kinetic 1181 | . . 175 533 416 57 . . . . . . . . . . . . . . Thermal 314 | . . . 77 97 140 . . . . . . . . . . . . . . Explosive 196 | . . . . . . 154 . . . . . . . . . . . . 42 Electromagnetic 1410 | . . . 18 . . . . . . . . 1392 . . . . . . . Impact . | . . . . . . . . . . . . . . . . . . . . Slashing 1378 | . . . . . . . . . 322 . . . 248 . . 148 414 170 76 Piercing . | . . . . . . . . . . . . . . . . . . . . Highest Corruption 16 | . . . 4 4 4 . . . . . . 1 . . . . . 12 16 Average Corruption 4 | . . . 4 4 4 . . . . . . 1 . . . . . 1 12 Corruption Purged . | . . . . . . . . . . . . . . . . . . . . Corruption Blocked 9 | . . . . . . 9 . . . . . . . . . . . . . Effects 84 | . . . 9 26 33 . . . . . . . . . . . . 1 15 Message Errors 25 | . . . 2 9 9 . . . . . . . . . . . . 1 4 Matter Fused 27 | . . . 1 11 11 . . . . . . . . . . . . . 4 Heat Flow Errors 5 | . . . 1 3 1 . . . . . . . . . . . . . . Energy Discharges 11 | . . . 3 2 4 . . . . . . . . . . . . . 2 Parts Rejected 2 | . . . 1 . 1 . . . . . . . . . . . . . . Data Loss (minor) 6 | . . . 1 . 4 . . . . . . . . . . . . . 1 Data Loss (major) 4 | . . . . . 2 . . . . . . . . . . . . . 2 Misfires 1 | . . . . . 1 . . . . . . . . . . . . . . Alerts 1 | . . . . . . . . . . . . . . . . . . . 1 Misdirections 1 | . . . . . . . . . . . . . . . . . . . 1 Weapon Failures 1 | . . . . 1 . . . . . . . . . . . . . . . Overload Shots . | . . . . . . . . . . . . . . . . . . . . Overflow Damage 451 | . . . . . . . . . 22 . . 193 48 . . 68 104 16 . Projectiles . | . . . . . . . . . . . . . . . . . . . . Explosions 193 | . . . . . . . . . . . . 193 . . . . . . . Melee 258 | . . . . . . . . . 22 . . . 48 . . 68 104 16 . Knockbacks . | . . . . . . . . . . . . . . . . . . . . Impact . | . . . . . . . . . . . . . . . . . . . . Kinetic . | . . . . . . . . . . . . . . . . . . . . Secondary . | . . . . . . . . . . . . . . . . . . . . Self-Inflicted Damage 104 | . . . . 6 . . . . . . . 98 . . . . . . . Shots 1 | . . . . . . . . . . . . 1 . . . . . . . Rammed 1 | . . . . 1 . . . . . . . . . . . . . . . Targets Rammed 1 | . . . . 1 . . . . . . . . . . . . . . . Kicked . | . . . . . . . . . . . . . . . . . . . . Crushed . | . . . . . . . . . . . . . . . . . . . . Highest Temperature 486 | . . . 212 272 266 232 70 41 466 111 105 122 213 10 126 146 198 486 278 Average Temperature 74 | . . . 75 43 58 60 30 15 95 42 44 40 51 10 49 43 65 113 166 Received Heat Transfer 933 | . . . 135 36 18 . . . 438 9 18 . 69 30 . . . 45 135 Effects 16 | . . . . 2 . . . . 4 . . . . . . . . 6 4 Shutdowns 2 | . . . . . . . . . 2 . . . . . . . . . . Energy Bleed 3 | . . . . 2 . . . . 1 . . . . . . . . . . Interference 9 | . . . . . . . . . . . . . . . . . . 5 4 Short Circuit 2 | . . . . . . . . . 1 . . . . . . . . 1 . Siege Activations . | . . . . . . . . . . . . . . . . . . . . Robots Corrupted 2 | . . . . . . . . . . . . 2 . . . . . . . Combat Hostiles 1 | . . . . . . . . . . . . 1 . . . . . . . Parts Fried 10 | . . . . . . . . . . . . 10 . . . . . . . Impact Corruptions . | . . . . . . . . . . . . . . . . . . . . Robots Melted . | . . . . . . . . . . . . . . . . . . . . Combat Hostiles . | . . . . . . . . . . . . . . . . . . . . Parts Melted 1 | . . . . . 1 . . . . . . . . . . . . . . Heat Transferred 629 | . . . 185 185 259 . . . . . . . . . . . . . . Parts Sabotaged . | . . . . . . . . . . . . . . . . . . . . Parts Stolen . | . . . . . . . . . . . . . . . . . . . . Parts Stripped . | . . . . . . . . . . . . . . . . . . . . Power Chain Reactions 1 | . . . . . . . . . . . . 1 . . . . . . . Alert | -11 -10 -10 -8 -8 -8 -6 -5 -4 -4 -4 -4 -4 -3 -3 -3 -2 -2 -1 -1 ------- Run | Yrd Mat Sub Mat Sto Rec Fac Fac Fac Ext Cet Arc Hub Res Qua Sec Res Tes Acc Com Peak Influence 1051 | . 15 . 264 997 418 393 321 205 356 211 176 736 683 470 362 508 720 757 1051 Initial 477 | . . . . 26 388 302 77 156 100 182 84 61 393 378 264 198 285 432 477 Average 282 | . 7 . 127 515 86 266 213 167 174 198 110 193 537 423 299 261 487 495 638 Maximum Alert Level 3 | . . . 1 3 2 1 1 1 1 1 . 3 2 2 1 2 3 3 3 Low Security (%) 46 | 100 100 . 72 12 92 24 34 96 77 64 100 86 . . . 14 . . . Level 1 22 | . . . 27 20 6 75 65 3 22 36 . . 7 23 100 70 27 10 . Level 2 24 | . . . . 43 . . . . . . . . 92 76 . 15 65 79 60 Level 3 6 | . . . . 22 . . . . . . . 13 . . . . 7 9 39 Level 4 . | . . . . . . . . . . . . . . . . . . . . Level 5 . | . . . . . . . . . . . . . . . . . . . . High Security . | . . . . . . . . . . . . . . . . . . . . Max Security . | . . . . . . . . . . . . . . . . . . . . Squads Dispatched 29 | . . . 1 6 . 2 2 1 2 . . 1 1 1 2 1 2 7 . Investigation 12 | . . . 1 3 . . 2 1 1 . . . 1 . . 1 1 1 . Extermination 3 | . . . . . . 2 . . . . . . . . . . . 1 . Reinforcement 13 | . . . . 3 . . . . 1 . . 1 . 1 2 . 1 4 . Assault . | . . . . . . . . . . . . . . . . . . . . Garrison 1 | . . . . . . . . . . . . . . . . . . 1 . Intercept . | . . . . . . . . . . . . . . . . . . . . Searches Triggered 3 | . . . . . . . . . . . . . 1 . . . . 2 . Construction Impeded 1 | . . . . . . . . . . . . . . . . . . 1 . Haulers Reinforced . | . . . . . . . . . . . . . . . . . . . . Active Scanning Responses . | . . . . . . . . . . . . . . . . . . . . Cargo Convoy Interrupts 1 | . . . . . . 1 . . . . . . . . . . . . . Stealth | -11 -10 -10 -8 -8 -8 -6 -5 -4 -4 -4 -4 -4 -3 -3 -3 -2 -2 -1 -1 --------- Run | Yrd Mat Sub Mat Sto Rec Fac Fac Fac Ext Cet Arc Hub Res Qua Sec Res Tes Acc Com Distress Signals 15 | . . . . 2 . 1 . . 1 2 . . 2 . . . 1 3 3 Communications Jammed . | . . . . . . . . . . . . . . . . . . . . Distress Signals . | . . . . . . . . . . . . . . . . . . . . Times Spotted 235 | . 3 2 14 32 2 5 . . 17 6 4 5 28 8 12 . 17 43 37 Peak Tracking Total 25 | . 3 2 4 7 1 3 . 1 12 10 4 4 14 7 11 . 8 25 18 Tactical Retreats 25 | . . . . 2 . 2 . . 1 . . 1 3 . . . 3 6 7 Traps | -11 -10 -10 -8 -8 -8 -6 -5 -4 -4 -4 -4 -4 -3 -3 -3 -2 -2 -1 -1 ------- Run | Yrd Mat Sub Mat Sto Rec Fac Fac Fac Ext Cet Arc Hub Res Qua Sec Res Tes Acc Com Traps Triggered 13 | . . . . 3 . . . . 3 . . 3 1 . . . . 3 . Indirectly . | . . . . . . . . . . . . . . . . . . . . Trap Hack Attempts . | . . . . . . . . . . . . . . . . . . . . Triggered . | . . . . . . . . . . . . . . . . . . . . Disarmed . | . . . . . . . . . . . . . . . . . . . . Reprogrammed . | . . . . . . . . . . . . . . . . . . . . Reused . | . . . . . . . . . . . . . . . . . . . . Traps Extracted . | . . . . . . . . . . . . . . . . . . . . Installed . | . . . . . . . . . . . . . . . . . . . . Triggered 1 | . . . . . . 1 . . . . . . . . . . . . . Machines | -11 -10 -10 -8 -8 -8 -6 -5 -4 -4 -4 -4 -4 -3 -3 -3 -2 -2 -1 -1 ---------- Run | Yrd Mat Sub Mat Sto Rec Fac Fac Fac Ext Cet Arc Hub Res Qua Sec Res Tes Acc Com Machines Disabled 24 | . . . . 3 . 1 . . 1 1 1 11 . 2 . . 2 1 1 Max in Single Turn 11 | . . . . 1 . 1 . . 1 1 1 11 . 1 . . 1 1 1 Garrison Access 4 | . . . . 1 . . 1 . . . . . . . . 1 . 1 . Network Hub 1 | . . . . . . . . . . . . 1 . . . . . . . Machines Repaired . | . . . . . . . . . . . . . . . . . . . . Machines Dismantled . | . . . . . . . . . . . . . . . . . . . . Machines Sabotaged . | . . . . . . . . . . . . . . . . . . . . Overloaded Fab Kills . | . . . . . . . . . . . . . . . . . . . . Hacking | -11 -10 -10 -8 -8 -8 -6 -5 -4 -4 -4 -4 -4 -3 -3 -3 -2 -2 -1 -1 --------- Run | Yrd Mat Sub Mat Sto Rec Fac Fac Fac Ext Cet Arc Hub Res Qua Sec Res Tes Acc Com Machines Accessed 73 | . . 1 1 4 12 2 5 1 5 3 . 5 3 2 1 1 10 10 7 Terminals 55 | . . . . 1 6 2 3 . 5 3 . 5 3 2 1 . 9 8 7 Fabricators . | . . . . . . . . . . . . . . . . . . . . Repair Stations . | . . . . . . . . . . . . . . . . . . . . Recycling Units 11 | . . . 1 2 6 . 1 1 . . . . . . . . . . . Scanalyzers . | . . . . . . . . . . . . . . . . . . . . Garrison Access 6 | . . . . 1 . . 1 . . . . . . . . 1 1 2 . Total Hacks 169 | . . 4 1 6 28 3 7 2 12 8 . 11 9 7 2 4 24 24 17 Successful 74 | . . 4 1 3 15 1 4 1 3 2 . 4 1 5 . 1 9 12 8 Failed 95 | . . . . 3 13 2 3 1 9 6 . 7 8 2 2 3 15 12 9 Catastrophic 20 | . . . . 1 1 . . . 4 1 . . . 1 1 1 4 2 4 Database Lockouts . | . . . . . . . . . . . . . . . . . . . . Manual 101 | . . . 1 4 26 3 6 2 3 . . 7 7 2 2 4 15 9 10 Terminals 141 | . . . . 2 21 3 4 . 12 8 . 11 9 7 2 . 23 22 17 Fabricators . | . . . . . . . . . . . . . . . . . . . . Repair Stations . | . . . . . . . . . . . . . . . . . . . . Recycling Units 13 | . . . 1 2 7 . 1 2 . . . . . . . . . . . Scanalyzers . | . . . . . . . . . . . . . . . . . . . . Garrison Access 11 | . . . . 2 . . 2 . . . . . . . . 4 1 2 . Terminal Hacks 37 | . . 4 . . 6 . 1 . 2 2 . 1 . 4 . . 5 7 5 Record 17 | . . 4 . . . . . . . 1 . . . 3 . . 4 2 3 Open Door 7 | . . . . . . . . . 2 1 . . . . . . . 3 1 Open DSF 1 | . . . . . . . 1 . . . . . . . . . . . . Level Access Points 3 | . . . . . 1 . . . . . . 1 . . . . . . 1 Branch Access Points 2 | . . . . . . . . . . . . . . 1 . . . 1 . Emergency Access Points 1 | . . . . . . . . . . . . . . . . . 1 . . Recycling Unit Index 1 | . . . . . 1 . . . . . . . . . . . . . . Alert Level 3 | . . . . . 2 . . . . . . . . . . . . 1 . Unreport Threat 2 | . . . . . 2 . . . . . . . . . . . . . . Fabricator Hacks . | . . . . . . . . . . . . . . . . . . . . Repair Station Hacks . | . . . . . . . . . . . . . . . . . . . . Recycling Unit Hacks . | . . . . . . . . . . . . . . . . . . . . Scanalyzer . | . . . . . . . . . . . . . . . . . . . . Garrison Access Hacks . | . . . . . . . . . . . . . . . . . . . . Unauthorized Hacks 37 | . . . 1 3 9 1 3 1 1 . . 3 1 1 . 1 4 5 3 Terminals 22 | . . . . . 3 1 1 . 1 . . 3 1 1 . . 4 4 3 Botnet 22 | . . . . . 3 1 1 . 1 . . 3 1 1 . . 4 4 3 Fabricators . | . . . . . . . . . . . . . . . . . . . . Repair Stations . | . . . . . . . . . . . . . . . . . . . . Recycling Units 11 | . . . 1 2 6 . 1 1 . . . . . . . . . . . Tunnel 11 | . . . 1 2 6 . 1 1 . . . . . . . . . . . Scanalyzers . | . . . . . . . . . . . . . . . . . . . . Garrison Access 4 | . . . . 1 . . 1 . . . . . . . . 1 . 1 . Jam 4 | . . . . 1 . . 1 . . . . . . . . 1 . 1 . Data Cores Recovered 1 | . . . . . . . . . . . . . . . . . 1 . . Used . | . . . . . . . . . . . . . . . . . . . . Hacking Detections 50 | . . . . 1 4 1 2 . 5 3 . 5 3 1 1 . 10 7 7 Full Trace Events 3 | . . . . . . . . . 1 . . . . . . . 1 . 1 Feedback Events 1 | . . . . . . . . . . . . . . . . . . . 1 Corruption 1 | . . . . . . . . . . . . . . . . . . . 1 Feedback Blocked . | . . . . . . . . . . . . . . . . . . . . Robot Schematics Acquired . | . . . . . . . . . . . . . . . . . . . . Robots Built . | . . . . . . . . . . . . . . . . . . . . Authchips . | . . . . . . . . . . . . . . . . . . . . Time . | . . . . . . . . . . . . . . . . . . . . Total Robot Build Rating . | . . . . . . . . . . . . . . . . . . . . Part Schematics Acquired . | . . . . . . . . . . . . . . . . . . . . Parts Built . | . . . . . . . . . . . . . . . . . . . . Authchips . | . . . . . . . . . . . . . . . . . . . . Time . | . . . . . . . . . . . . . . . . . . . . Total Part Build Rating . | . . . . . . . . . . . . . . . . . . . . Parts Repaired . | . . . . . . . . . . . . . . . . . . . . Time . | . . . . . . . . . . . . . . . . . . . . Parts Recycled . | . . . . . . . . . . . . . . . . . . . . Recycled Matter . | . . . . . . . . . . . . . . . . . . . . Retrieved Matter . | . . . . . . . . . . . . . . . . . . . . Retrieved Components . | . . . . . . . . . . . . . . . . . . . . Parts Scanalyzed . | . . . . . . . . . . . . . . . . . . . . Part Schematics Acquired . | . . . . . . . . . . . . . . . . . . . . Parts Damaged . | . . . . . . . . . . . . . . . . . . . . Bothacking | -11 -10 -10 -8 -8 -8 -6 -5 -4 -4 -4 -4 -4 -3 -3 -3 -2 -2 -1 -1 ------------ Run | Yrd Mat Sub Mat Sto Rec Fac Fac Fac Ext Cet Arc Hub Res Qua Sec Res Tes Acc Com Used RIF Installer . | . . . . . . . . . . . . . . . . . . . . Robots Hacked . | . . . . . . . . . . . . . . . . . . . . Non-combat . | . . . . . . . . . . . . . . . . . . . . Combat . | . . . . . . . . . . . . . . . . . . . . Robot Hacks Applied . | . . . . . . . . . . . . . . . . . . . . Relay Couplers Released . | . . . . . . . . . . . . . . . . . . . . Fabnet Peak Effective % . | . . . . . . . . . . . . . . . . . . . . Robots Rewired . | . . . . . . . . . . . . . . . . . . . . Allies Hacked 1 | . . . . . . . . . . . . . . . . . . 1 . Hacks Repelled . | . . . . . . . . . . . . . . . . . . . . Allies | -11 -10 -10 -8 -8 -8 -6 -5 -4 -4 -4 -4 -4 -3 -3 -3 -2 -2 -1 -1 -------- Run | Yrd Mat Sub Mat Sto Rec Fac Fac Fac Ext Cet Arc Hub Res Qua Sec Res Tes Acc Com Total Allies 16 | . . . . 11 . . . . 2 . . . . . . . . 3 . Largest Group 11 | . . . . 11 1 . . . 1 . . . . . . . . 3 . Highest-Rated Group 273 | . . . . 273 100 . . . 46 . . . . . . . . 138 . Highest-Rated Ally 100 | . . . . 100 100 . . . 46 . . . . . . . . 46 . Total Orders 2 | . . . . 1 . . . . . . . . . . . . . . 1 EXPLORE 2 | . . . . 1 . . . . . . . . . . . . . . 1 Ally Attacks 135 | . . . . 102 . . . . 13 . . . . . . . . 20 . Total Damage 3575 | . . . . 2609 . . . . 514 . . . . . . . . 452 . Kills 35 | . . . . 29 . . . . 3 . . . . . . . . 3 . Allies Corrupted . | . . . . . . . . . . . . . . . . . . . . Allies Melted . | . . . . . . . . . . . . . . . . . . . . Intel | -11 -10 -10 -8 -8 -8 -6 -5 -4 -4 -4 -4 -4 -3 -3 -3 -2 -2 -1 -1 ------- Run | Yrd Mat Sub Mat Sto Rec Fac Fac Fac Ext Cet Arc Hub Res Qua Sec Res Tes Acc Com Robot Analysis Total . | . . . . . . . . . . . . . . . . . . . . Derelict Logs Recovered 1 | . . 1 . . . . . . . . . . . . . . . . . Drone Launches 4 | . . . . 2 . . . . . . . . . . . . . . 2 Drone Recoveries 1 | . . . . 1 . . . . . . . . . . . . . . . Exploration | -11 -10 -10 -8 -8 -8 -6 -5 -4 -4 -4 -4 -4 -3 -3 -3 -2 -2 -1 -1 ------------- Run | Yrd Mat Sub Mat Sto Rec Fac Fac Fac Ext Cet Arc Hub Res Qua Sec Res Tes Acc Com Turns Passed 7946 | 61 731 944 440 1170 1327 878 78 62 360 50 15 115 284 52 40 199 168 673 299 Spaces Moved 9407 | 42 68 589 148 494 656 709 257 247 848 246 64 241 970 282 127 333 630 1699 757 Core 11 | 8 . 3 . . . . . . . . . . . . . . . . . Treads 105 | . . . 105 . . . . . . . . . . . . . . . . Legs 55 | 34 21 . . . . . . . . . . . . . . . . . . Wheels 1838 | . 47 586 43 494 656 12 . . . . . . . . . . . . . Hover . | . . . . . . . . . . . . . . . . . . . . Flight 7398 | . . . . . . 697 257 247 848 246 64 241 970 282 127 333 630 1699 757 Fastest Speed 10 | 50 120 135 150 190 190 17 14 14 12 12 12 12 12 12 12 10 10 10 16 Average Speed 48 | 109 130 153 216 197 190 19 14 14 13 12 12 12 12 12 12 10 10 10 18 Slowest Speed 1400 | 120 135 1400 240 205 190 190 14 17 18 12 12 12 14 12 12 10 10 86 37 Overloaded Moves . | . . . . . . . . . . . . . . . . . . . . Propulsion Burnouts . | . . . . . . . . . . . . . . . . . . . . Robots Hopped 74 | . . . . . . 3 2 . 9 2 2 4 14 . 6 . 4 20 8 Cave-ins Triggered . | . . . . . . . . . . . . . . . . . . . . Exploration Rate (%) 40 | 4 14 34 11 85 98 8 13 7 70 86 76 29 31 50 14 10 91 50 31 Regions Visited 19 Branch Regions 11 Pre-discovered Areas 12 | . . 1 1 2 6 . 1 1 . . . . . . . . . . . Known Exits Taken 8 | . . . . . 1 . . . . . . 1 1 1 1 1 1 1 . Unknown Exits Taken 11 | 1 1 1 1 1 . 1 1 1 1 1 1 . . . . . . . . Scrap Searched 1 | . . 1 . . . . . . . . . . . . . . . . . Spaces Dug 143 | . . . . . . 27 1 2 . . 1 5 21 . 4 25 13 26 18 Terrain Destroyed 347 | . . . 2 1 . 49 1 2 . . 1 184 21 . 4 25 13 26 18 Melee 113 | . . . . . . 19 1 2 . . 1 1 21 . 4 25 13 26 . Projectile 7 | . . . 2 1 . . . . . . . 4 . . . . . . . AOE 227 | . . . . . . 30 . . . . . 179 . . . . . . 18 Terrain Rammed . | . . . . . . . . . . . . . . . . . . . . Walls Destroyed . | . . . . . . . . . . . . . . . . . . . . Machines Disabled . | . . . . . . . . . . . . . . . . . . . . Actions | -11 -10 -10 -8 -8 -8 -6 -5 -4 -4 -4 -4 -4 -3 -3 -3 -2 -2 -1 -1 --------- Run | Yrd Mat Sub Mat Sto Rec Fac Fac Fac Ext Cet Arc Hub Res Qua Sec Res Tes Acc Com Total 12300 | 54 709 612 219 648 716 1416 295 269 1069 259 65 313 1080 292 137 447 696 2099 905 Wait 2384 | . 638 1 10 40 43 640 30 11 204 13 2 67 80 3 12 75 38 349 128 Move 9255 | 41 67 588 147 493 655 702 252 246 830 241 59 232 948 281 114 332 621 1664 742 Hop 58 | . . . . . . 3 2 . 8 2 2 4 7 . 6 . 4 14 6 Pick Up 82 | 7 . . 17 28 . 6 2 3 2 . . . 2 1 . 3 2 5 4 Fast Attach 53 | 5 1 5 5 10 3 3 2 2 1 . . 1 2 2 . . 1 3 7 Attach 57 | 1 . 1 6 5 . 13 3 1 2 . . . 5 1 . 3 1 7 8 Detach 15 | . 1 3 2 3 . 1 1 . . . . . 2 . . . . . 2 Swap 39 | . 2 . 4 3 . 3 . 1 11 . . 3 3 . . 1 4 4 . Drop 82 | . . 1 2 31 2 21 2 3 3 . . . 4 . . . 3 5 5 Fire 88 | . . 13 26 25 13 5 . . . . . 5 . . . . . . 1 Melee 177 | . . . . . . 19 1 2 8 3 2 1 27 4 5 33 22 48 2 Ram 1 | . . . . 1 . . . . . . . . . . . . . . . Kick . | . . . . . . . . . . . . . . . . . . . . Crush . | . . . . . . . . . . . . . . . . . . . . Escape Stasis 8 | . . . . 8 . . . . . . . . . . . . . . . Rewire 1 | . . . . 1 . . . . . . . . . . . . . . . Trap . | . . . . . . . . . . . . . . . . . . . . Miscellaneous . | . . . . . . . . . . . . . . . . . . . . Route ------- -11/Scrapyard -10/Materials -10/Subcaves -8/Materials -8/Storage (discovered 2 exits: [*Fac] / *Rec) -8/Recycling -6/Factory -5/Factory (discovered 2 exits: *Fac / DSF) -4/Factory (discovered 2 exits: *Res / *Ext) -4/Extension (discovered 2 exits: *Res / *Cet) -4/Cetus (discovered 2 exits: *Res / *Arc) -4/Archives (discovered 2 exits: *Res / *Hub) -4/Hub_04(d) (discovered 4 exits: *Res x4) -3/Research (discovered 2 exits: *Arm / *Qua) -3/Quarantine (discovered 2 exits: *Res / *Sec) -3/Section 7 -2/Research -2/Testing -1/Access -1/Command (discovered 2 exits: *Sur x2) To Epsilon Eridani History --------- Turn | Location | Event 8 | -11/Scrapyard | Discovered new exit (range 15) 62 | -11/Scrapyard | Entered Materials 307 | -10/Materials | Build established: Mutant 785 | -10/Materials | Discovered new exit (range 3) 793 | -10/Materials | Entered Subcaves 834 | -10/Subcaves | A swath of the cavern ceiling suddenly collapsed 1001 | -10/Subcaves | Core integrity fell below 50% 1029 | -10/Subcaves | Lost 4 parts (1p2n1w) 1250 | -10/Subcaves | Learned location of Storage (-8) 1337 | -10/Subcaves | Visited Clippyterm 1342 | -10/Subcaves | Learned Factory trap positions 1343 | -10/Subcaves | Build established: Scavenger-Mutant 1709 | -10/Subcaves | Build established: Mutant 1723 | -10/Subcaves | Discovered new exit (range 10) 1737 | -10/Subcaves | Entered Materials 1737 | -8/Materials | Evolved 4 slots: Propulsion x2, Utility x2 1915 | -8/Materials | Discovered new exit (range 16) 2177 | -8/Materials | Entered Storage 2250 | -8/Storage | Met 01-MTF 2366 | -8/Storage | Build established: Scavenger-Mutant 2580 | -8/Storage | Assisted by bots powering up and referring to "LRC-V3" 2861 | -8/Storage | Lost 4 allies 2915 | -8/Storage | Discovered new exit (range 15) 3235 | -8/Storage | Lost 4 allies 3263 | -8/Storage | Discovered new exit (range 4) 3347 | -8/Storage | Entered Recycling 3347 | -8/Recycling | Accompanied by 1 ally (01-MTF) 3352 | -8/Recycling | 01-MTF left 3508 | -8/Recycling | Identified exit to Factory 4674 | -8/Recycling | Entered Factory 4674 | -6/Factory | Evolved 4 slots: Power x1, Propulsion x3 4675 | -6/Factory | Loaded intel: 78 trap records 4991 | -6/Factory | Build established: Scavenger-Sprinter 5506 | -6/Factory | Cargo convoy interrupted 5535 | -6/Factory | Discovered new exit (range 15) 5552 | -6/Factory | Entered another Factory area 5552 | -5/Factory | Evolved 2 slots: Propulsion x1, Utility x1 5608 | -5/Factory | Identified exit to DSF 5629 | -5/Factory | Spotted B-75 Beast 5629 | -5/Factory | Discovered new exit (range 10) 5630 | -5/Factory | Entered another Factory area 5630 | -4/Factory | Evolved 2 slots: Propulsion x1, Utility x1 5655 | -4/Factory | Discovered new exit (range 8) 5691 | -4/Factory | Discovered new exit (range 12) 5692 | -4/Factory | Entered Extension 5742 | -4/Extension | Rescued a captive Derelict 5786 | -4/Extension | Disrupted transfer network 5802 | -4/Extension | Spotted B-86 Titan 5969 | -4/Extension | Rescued a captive Derelict 5995 | -4/Extension | Spotted B-86 Titan 6048 | -4/Extension | Discovered new exit (range 16) 6048 | -4/Extension | Discovered new exit (range 14) 6052 | -4/Extension | Entered Cetus 6054 | -4/Cetus | Spotted Cetus Guard 6055 | -4/Cetus | Spotted Cetus Guard 6055 | -4/Cetus | Spotted Cetus Guard 6060 | -4/Cetus | Discovered new exit (range 16) 6070 | -4/Cetus | Spotted Cetus Guard 6097 | -4/Cetus | Discovered new exit (range 16) 6100 | -4/Cetus | Spotted Cetus Guard 6102 | -4/Cetus | Entered Archives 6109 | -4/Archives | Unable to access archive contents 6114 | -4/Archives | Discovered new exit (range 11) 6115 | -4/Archives | Unable to access archive contents 6116 | -4/Archives | Discovered new exit (range 13) 6117 | -4/Archives | Entered Hub_04(d) 6120 | -4/Hub_04(d) | Discovered new exit (range 16) 6199 | -4/Hub_04(d) | Identified exit to Research 6216 | -4/Hub_04(d) | Network Hub disabled 6232 | -4/Hub_04(d) | Entered Research 6232 | -3/Research | Evolved 2 slots: Utility x2 6265 | -3/Research | Spotted B-86 Titan 6383 | -3/Research | Discovered new exit (range 6) 6383 | -3/Research | Identified exit to Armory 6482 | -3/Research | Search patrols dispatched 6512 | -3/Research | Discovered new exit (range 6) 6516 | -3/Research | Identified exit to Quarantine 6516 | -3/Research | Entered Quarantine 6523 | -3/Quarantine | Found Alien Artifact 6523 | -3/Quarantine | Identified Subatomic Replicator 6531 | -3/Quarantine | Found Alien Artifact 6531 | -3/Quarantine | Identified Terrabomb 6531 | -3/Quarantine | Used Terrabomb 6538 | -3/Quarantine | Found Terrabomb 6553 | -3/Quarantine | Discovered new exit (range 20) 6555 | -3/Quarantine | Spotted Fortress 6565 | -3/Quarantine | Discovered new exit (range 6) 6565 | -3/Quarantine | Identified exit to Section 7 6568 | -3/Quarantine | Entered Section 7 6569 | -3/Section 7 | Spotted S7 Guard 6599 | -3/Section 7 | Discovered new exit (range 19) 6608 | -3/Section 7 | Identified exit to Research 6608 | -3/Section 7 | Entered Research 6608 | -2/Research | Evolved 2 slots: Power x1, Propulsion x1 6632 | -2/Research | Build established: Scout 6799 | -2/Research | Discovered new exit (range 5) 6807 | -2/Research | Identified exit to Testing 6807 | -2/Research | Entered Testing 6917 | -2/Testing | Spotted PH-NXMOXLFXL9 6975 | -2/Testing | Discovered new exit (range 5) 6975 | -2/Testing | Identified exit to Access 6975 | -2/Testing | Entered Access 6975 | -1/Access | Evolved 2 slots: Utility x2 7051 | -1/Access | Spotted B-99 Colossus 7051 | -1/Access | Spotted B-99 Colossus 7053 | -1/Access | Spotted B-99 Colossus 7225 | -1/Access | Search patrols dispatched 7230 | -1/Access | Build established: Scavenger-Scout 7381 | -1/Access | Spotted B-99 Colossus 7419 | -1/Access | Allied Derelicts emerged from ambush trap array 7442 | -1/Access | Garrison activated, responded to threat 7504 | -1/Access | Spotted B-99 Colossus 7521 | -1/Access | Search patrols dispatched 7606 | -1/Access | Identified exit to Command 7639 | -1/Access | System corruption reached 10% 7648 | -1/Access | Entered Command 7666 | -1/Command | Found Fusion Bomb Launcher 7671 | -1/Command | Lost 6 parts (1p3n2u) 7727 | -1/Command | Build established: Scout 7818 | -1/Command | Spotted B-99 Colossus 7884 | -1/Command | Spotted Alpha 7 7884 | -1/Command | Spotted Striker 7884 | -1/Command | Spotted Executioner 7884 | -1/Command | Spotted Executioner 7884 | -1/Command | Spotted Alpha 7 7884 | -1/Command | Spotted Striker 7884 | -1/Command | Spotted Executioner 7884 | -1/Command | Spotted Executioner 7909 | -1/Command | Spotted M Guard 7909 | -1/Command | Spotted M Guard 7920 | -1/Command | Spotted Combat Programmer 7920 | -1/Command | Spotted Combat Programmer 7929 | -1/Command | Met MAIN.C 7933 | -1/Command | 0b10 Conduit disabled 7934 | -1/Command | Used Terrabomb 7938 | -1/Command | MAIN.C activated Command garrisons 7943 | -1/Command | Identified exit to Surface 7947 | *** | Escaped! Last Messages --------------- (196,103) Map updated. >>Trojan(Botnet) Trojan loaded successfully. Testing... Terminal linked with 1 system. Awaiting botnet instructions. 07944_ Connecting with Terminal... >>Query(Leopard) A [Sigix] scout class spacecraft. My robots only barely managed to kill or capture the relatively small contingent of [Sigix] aboard when one landed on [Tau Ceti IV] earlier this year. I've begun dismantling the ship where it landed, researching its components and technology for replication. >>Query(Sigix) An aggressive intelligent alien race that initiated the [Solar War] in 2198 with a sudden attack on [Human] civilization there. The only contact I've had with them to date is the [Leopard] class scout ship that landed in 2243. Feedback: System corruption (+1%). Map ----- +----------------------------------------------------+ | ???????????????????????????## " """""" | | ???????????????????????????# " "" " | | ??????????????????????????## " """ " | | ??????????????????????????# " """ " | | ??????????????????????????# " " " " | | ??????????????????????????# " " " | | ??????????????????????????# " " " | | ??????????????????????????# " """""" | | ???????????????????????#+## " """ | | ???????????????????????# # " " | | ???????????????????????# ## " " | | ???????????????????????# ## """""""!"" | | ?????????????????????### ## " | | ?????????????????????# #""""""""" | | ?????????????????????# "T | | ?????????????????????# "" #"""""""""""""""""" "" | | ?????????????????????# ## " " " " " | | ?????????????????????## ### " !" " " | | ??????????????????????# T"## " " " """""" | | ??????????????????????# ""## " " " | | ??????????????????????# ##### " " """""""" | | ??????????????????????# #???# " " | | ??????????????????????# #???## " " | | ??????????????????????# ###??## """"" | | ??????????????????????# #???## | | ??????????????????????# @ #????## | | ??????????????????????# #?????### | | ??????????????????????######???????### | | ?????????????????????????????????????### | | ???????????????????????????????????????####### ### | | ??????????????????????????????????????????????##?? | | ?????????????????????????????????????????????????? | | ?????????????????????????????????????????????????? | | ?????????????????????????????????????????????????? | | ?????????????????????????????????????????????????? | | ?????????????????????????????????????????????????? | | ?????????????????????????????????????????????????? | | ?????????????????????????????????????????????????? | | ?????????????????????????????????????????????????? | | ?????????????????????????????????????????????????? | | ?????????????????????????????????????????????????? | | ?????????????????????????????????????????????????? | | ?????????????????????????????????????????????????? | | ?????????????????????????????????????????????????? | | ?????????????????????????????????????????????????? | | ?????????????????????????????????????????????????? | | ?????????????????????????????????????????????????? | | ?????????????????????????????????????????????????? | | ?????????????????????????????????????????????????? | | ?????????????????????????????????????????????????? | +----------------------------------------------------+ Best States ------------- Heat Dissipation 79 Energy Generation 70 Energy Capacity 325 Matter Stores 300 Matter Capacity 300 Sight Range 22 Robot Scan Range 15 Terrain Scan Density 10 Power Amplification 40 Base Temperature (-) 200 Armor Coverage 750 Phase Shifting 10 Evasion (%) 86 Recoil Reduction 4 Offensive Hacking 12 Item Schematics ----------------- None Robot Schematics ------------------ None Fabricated ------------ Nothing Alien Tech Used ----------------- Subatomic Replicator Terrabomb Achievements -------------- Meet Your Maker Nope Rockin' Loadout Speed Demon Challenges ------------ None Game ------ Seed PulseProtonBank Manual? 0 Play Time 03:16:51 Cumulative 74.1 hours Start 2024.04.17 @ 18:30:09 End 2024.04.17 @ 22:31:15 Sessions 1 Manual Loads 0 Difficulty Rogue Special Mode None Game No. 39 Rogue 39 Adventurer 0 Explorer 0 Win Type 0 Total 4 Types 4/0/0/0/0/0/0/0/0 Lore% 41 Gallery% 40 Achievement% 41 Wizard Run 0 Options --------- Layout 0 ASCII 0 Keyboard 0 Movement Numpad Keybinds 0 Fullscreen 2 Font 18/SmallcapsGlow Map View 76x50 Zoom Use 0% Tactical HUD 1 Map Filters NONE Filters NONE Steam 1 RUN: c2d5864c-88d9-409b-8925-5acbbcd9bf17